bitfinex-derivatives/quotes_ETHF0:USTF0_20230104
["timestamp","ask_amount","ask_price","bid_price","bid_amount"]
[1672800890777,8.6117,1231.3,1231.2,1.21003884]
[1672800892138,8.6187,1231.3,1231.2,1.21003884]
[1672800892992,8.6187,1231.3,1231.2,3.02447095]
[1672800893297,8.6187,1231.3,1231.2,1.21003884]
[1672800893509,8.6187,1231.3,1231.2,3.02447095]
[1672800893919,10.2447,1231.3,1231.1,4.21733884]
[1672800894135,2.121,1231.2,1231.1,1.21003884]
[1672800895491,6.7533,1231.2,1231.0,1.21003884]
[1672800895721,1.626,1231.1,1231.0,1.21003884]
[1672800896214,1.626,1231.1,1231.0,3.02447095]
[1672800896345,1.626,1231.1,1231.0,3.884e-05]
[1672800896557,4.626,1231.1,1231.0,3.884e-05]
[1672800897389,4.626,1231.1,1230.9,4.82173211]
[1672800897606,1.611,1231.0,1230.9,5.32173211]
[1672800898553,1.611,1231.0,1230.9,2.31443211]
[1672800899399,1.611,1231.0,1230.9,0.5]
[1672800900439,1.611,1231.0,1230.9,2.31443211]
[1672800903278,1.611,1231.0,1230.9,0.5]
[1672800904329,1.611,1231.0,1230.9,2.31443211]
[1672800904544,1.611,1231.0,1230.9,0.5]
[1672800904754,1.611,1231.0,1230.9,2.31443211]
[1672800912104,1.625,1231.0,1230.9,2.31443211]
[1672800913374,1.625,1231.0,1230.9,4.73604042]
[1672800913687,1.625,1231.0,1230.9,2.92160831]
[1672800913893,1.625,1231.0,1230.9,4.36154758]
[1672800915875,1.625,1231.0,1230.9,7.38855797]
[1672800916083,1.625,1231.0,1230.9,4.36154758]
[1672800919131,1.625,1231.0,1230.9,7.36884758]
[1672800919546,1.625,1231.0,1230.9,5.32286213]
[1672800919969,1.625,1231.0,1230.9,5.92890831]
[1672800920179,1.625,1231.0,1230.9,7.74441192]
[1672800920913,1.625,1231.0,1230.9,5.32280361]
[1672800921971,1.625,1231.0,1230.9,3.5073]
[1672800922180,4.625,1231.2,1230.9,3.5073]
[1672800922181,1.611,1231.1,1230.9,5.1333]
[1672800923334,1.611,1231.1,1230.9,6.94880361]
[1672800924810,1.611,1231.1,1230.9,9.37041192]
[1672800925217,1.626,1231.2,1231.0,1.81550361]
[1672800925433,6.9927,1231.3,1231.1,10.48141192]
[1672800925637,6.9927,1231.3,1231.2,3.44150361]
[1672800925958,3.0073,1231.9,1231.3,1.21321674]
[1672800926166,3.0073,1231.9,1231.5,3.0073]
[1672800926376,3.0073,1231.9,1231.6,1.626]
[1672800926592,4.6333,1231.9,1231.7,3.0073]
[1672800927013,17.23305656,1232.3,1231.9,1.626]
[1672800927212,3.0073,1232.3,1231.9,4.6333]
[1672800927422,10.70705656,1232.5,1232.1,1.619]
[1672800927632,1.611,1232.3,1232.1,1.619]
[1672800928060,1.626,1232.4,1232.2,1.626]
[1672800928483,1.626,1232.3,1232.1,4.6333]
[1672800933623,1.626,1232.2,1231.9,26.4083]
[1672800933837,1.621,1232.0,1231.9,3.0073]
[1672800935733,1.621,1232.0,1231.7,3.0073]
[1672800935734,1.626,1232.0,1231.7,3.0073]
[1672800935948,1.611,1231.8,1231.7,3.0073]
[1672800936260,1.611,1231.8,1231.7,3.5073]
[1672800938681,1.626,1232.0,1231.7,5.1253]
[1672800940990,1.625,1232.0,1231.7,5.1303]
[1672800941831,1.625,1232.0,1231.7,13.2693]
[1672800942045,2.12,1232.1,1231.9,3.0073]
[1672800942254,1.613,1232.2,1231.9,4.6173]
[1672800942460,1.613,1232.2,1231.9,12.7563]
[1672800942773,1.625,1232.3,1232.0,1.611]
[1672800942988,1.625,1232.3,1232.1,3.0073]
[1672800943724,1.618,1232.4,1232.2,8.139]
[1672800943939,1.618,1232.4,1232.1,12.7713]
[1672800944148,1.618,1232.4,1232.1,4.6323]
[1672800944882,1.618,1232.4,1232.1,12.7713]
[1672800947721,1.618,1232.4,1232.1,4.6323]
[1672800948140,1.618,1232.4,1232.1,12.7713]
[1672800950868,1.618,1232.4,1232.1,4.6323]
[1672800953073,3.0073,1232.7,1232.3,1.625]
[1672800953290,1.613,1232.9,1232.5,1.625]
[1672800953603,3.0,1232.8,1232.7,0.5]
[1672800954345,4.613,1232.9,1232.6,0.5]
[1672800954547,1.618,1232.7,1232.5,1.611]
[1672800954754,0.5,1232.6,1232.5,2.111]
[1672800954972,2.125,1232.6,1232.5,0.5]
[1672800955809,1.625,1232.6,1232.5,0.5]
[1672800956748,1.625,1232.6,1232.2,12.7713]
[1672800956958,1.613,1232.5,1232.3,0.5]
[1672800959170,3.228,1232.4,1232.2,3.0073]
[1672800959373,1.625,1232.3,1232.2,3.0073]
[1672800959589,1.625,1232.3,1232.2,3.5073]
[1672800961378,1.618,1232.3,1232.2,3.5073]
[1672800961698,1.625,1232.4,1232.2,3.5073]
[1672800963592,1.625,1232.4,1232.2,11.6463]
[1672800964853,1.625,1232.4,1232.2,13.45995448]
[1672800965578,1.625,1232.4,1232.2,11.6463]
[1672800966113,1.625,1232.4,1232.2,3.5073]
[1672800966325,1.625,1232.3,1232.2,0.5]
[1672800967156,1.619,1232.4,1232.2,5.32095448]
[1672800967474,1.619,1232.4,1232.2,13.45995448]
[1672800967690,1.625,1232.5,1232.3,1.81365448]
[1672800967900,1.625,1232.5,1232.4,3.0073]
[1672800969377,1.625,1232.5,1232.3,9.95265448]
[1672800969586,1.625,1232.5,1232.3,1.81365448]
[1672800970636,1.625,1232.6,1232.4,9.764]
[1672800971050,1.625,1232.6,1232.4,12.7713]
[1672800971992,1.625,1232.6,1232.4,14.58495448]
[1672800972832,1.625,1232.6,1232.4,12.7713]
[1672800973471,1.625,1232.6,1232.4,9.764]
[1672800974520,1.625,1232.4,1232.1,1.81365448]
[1672800974721,1.619,1232.3,1232.1,1.81365448]
[1672800974931,1.619,1232.3,1232.0,6.44095448]
[1672800975258,1.619,1232.3,1232.1,0.5]
[1672800976513,4.119,1232.3,1232.1,0.5]
[1672800976927,7.1263,1232.3,1232.0,6.44095448]
[1672800977248,1.625,1232.1,1231.9,1.81365448]
[1672800977457,2.119,1232.0,1231.9,2.31365448]
[1672800977670,1.619,1232.0,1231.9,0.5]
[1672800977878,1.619,1232.0,1231.9,2.31365448]
[1672800979553,1.619,1232.0,1231.8,4.82095448]
[1672800979764,1.619,1232.0,1231.8,5.32095448]
[1672800980498,1.619,1232.0,1231.8,7.73916045]
[1672800980711,4.62,1232.2,1231.9,11.57765448]
[1672800980922,4.62,1232.2,1231.9,3.43865448]
[1672800981347,4.62,1232.2,1231.9,1.625]
[1672800986185,2.12,1232.2,1231.9,1.625]
[1672800987758,2.5,1232.0,1231.9,1.625]
[1672800988701,3.0073,1232.1,1231.9,1.625]
[1672800988911,4.119,1232.0,1231.6,4.6323]
[1672800989120,1.622,1231.9,1231.6,4.6323]
[1672800989443,4.6293,1231.9,1231.7,0.5]
[1672800990175,1.625,1231.8,1231.6,3.0073]
[1672800990381,1.623,1231.7,1231.6,3.5073]
[1672800994276,1.618,1231.9,1231.6,5.1323]
[1672800994692,1.618,1231.9,1231.6,13.2713]
[1672800995742,1.618,1231.9,1231.8,3.0073]
[1672800995953,1.623,1232.1,1231.8,12.7713]
[1672800996797,1.62,1232.2,1231.9,1.625]
[1672800997011,1.62,1232.2,1232.0,3.0073]
[1672800997848,1.62,1232.2,1231.9,1.625]
[1672801000687,1.625,1232.1,1231.8,4.6323]
[1672801000892,1.625,1232.0,1231.8,3.0073]
[1672801002896,1.625,1232.0,1231.7,9.764]
[1672801003106,1.625,1232.0,1231.7,12.7713]
[1672801007101,1.625,1232.0,1231.7,4.6323]
[1672801008036,4.6323,1232.0,1231.7,1.625]
[1672801008677,1.625,1232.0,1231.7,4.6323]
[1672801012134,1.625,1231.9,1231.7,11.1463]
[1672801013185,1.625,1231.9,1231.7,12.95995448]
[1672801016345,1.625,1231.9,1231.7,14.16745364]
[1672801017405,1.625,1231.9,1231.7,6.02845364]
[1672801017604,1.625,1231.9,1231.7,14.16745364]
[1672801018349,1.625,1231.9,1231.7,6.02845364]
[1672801018761,1.625,1231.9,1231.7,14.16745364]
[1672801020451,1.625,1231.9,1231.8,1.20749916]
[1672801022233,1.625,1232.1,1231.8,4.63115364]
[1672801022448,1.625,1232.1,1231.9,4.21479916]
[1672801022654,1.625,1232.1,1231.9,4.20934053]
[1672801022864,1.625,1232.1,1231.9,3.00184137]
[1672801023288,1.625,1232.1,1231.9,4.20934053]
[1672801023908,1.625,1232.1,1231.9,3.00184137]
[1672801026968,1.618,1232.0,1231.8,1.20749916]
[1672801027491,1.618,1232.0,1231.8,3.02115364]
[1672801028124,1.618,1232.0,1231.8,1.20749916]
[1672801029492,1.618,1232.0,1231.8,3.02115364]
[1672801032005,1.618,1232.0,1231.8,1.20749916]
[1672801032218,1.618,1232.0,1231.8,3.02115364]
[1672801032427,1.618,1232.0,1231.8,1.20749916]
[1672801032967,1.618,1232.0,1231.8,3.02115364]
[1672801033910,1.618,1232.0,1231.8,6.02845364]
[1672801034750,1.618,1232.0,1231.9,1.20749916]
[1672801042216,1.625,1232.0,1231.9,1.20749916]
[1672801043052,1.625,1232.0,1231.9,3.02115364]
[1672801043788,1.625,1232.0,1231.9,1.20749916]
[1672801044527,1.619,1232.2,1231.9,4.04320597]
[1672801044727,1.619,1232.2,1231.9,9.764]
[1672801044938,1.619,1232.2,1232.0,1.20784336]
[1672801046199,1.619,1232.2,1232.0,4.21514336]
[1672801047041,1.619,1232.2,1232.0,6.0269084]
[1672801047995,1.619,1232.2,1232.0,4.21514336]
[1672801048418,1.619,1232.2,1232.0,6.0269084]
[1672801048632,1.619,1232.2,1232.0,4.21514336]
[1672801054402,1.619,1232.2,1232.0,1.20784336]
[1672801055566,1.619,1232.2,1231.9,15.7909084]
[1672801056190,1.619,1232.2,1232.0,1.20784336]
[1672801056400,1.619,1232.2,1231.9,15.7909084]
[1672801057665,1.619,1232.2,1231.9,10.97184336]
[1672801058920,1.619,1232.2,1231.9,13.97914336]
[1672801060818,4.6263,1232.2,1231.9,13.97914336]
[1672801061450,4.6263,1232.2,1231.9,12.7713]
[1672801062175,4.6263,1232.2,1231.9,13.97914336]
[1672801062606,4.6263,1232.2,1231.9,12.7713]
[1672801062909,4.6263,1232.2,1231.9,13.97914336]
[1672801063337,4.6263,1232.2,1231.9,5.84014336]
[1672801065131,4.6263,1232.2,1231.9,4.6323]
[1672801065439,1.625,1232.0,1231.9,3.0073]
[1672801065643,1.62,1232.0,1231.8,1.20784336]
[1672801067324,1.62,1232.0,1231.8,3.0196084]
[1672801070278,1.62,1232.0,1231.9,4.21514336]
[1672801070483,1.62,1232.0,1231.9,3.0073]
[1672801075426,1.62,1232.0,1231.8,3.0196084]
[1672801075634,1.62,1232.0,1231.8,6.0269084]
[1672801076374,1.62,1232.0,1231.8,4.21514336]
[1672801076582,1.62,1232.0,1231.8,6.0269084]
[1672801077005,1.62,1232.0,1231.8,4.21514336]
[1672801082263,1.625,1232.0,1231.8,5.82814336]
[1672801083426,1.625,1232.0,1231.8,2.82084336]
[1672801085848,1.625,1232.0,1231.8,1.613]
[1672801088990,1.625,1232.0,1231.8,1.61060841]
[1672801090884,1.625,1231.9,1231.7,9.34684336]
[1672801091409,4.6323,1231.9,1231.7,9.34684336]
[1672801091721,4.619,1231.8,1231.6,4.71514336]
[1672801092139,1.625,1231.8,1231.7,1.20784336]
[1672801093194,6.0073,1232.1,1231.7,4.6396084]
[1672801093403,1.625,1231.9,1231.7,4.6396084]
[1672801096461,1.625,1231.9,1231.7,2.82784336]
[1672801096673,1.625,1231.9,1231.7,4.6396084]
[1672801097298,1.625,1231.9,1231.7,2.82784336]
[1672801097711,1.625,1231.9,1231.7,4.6396084]
[1672801099717,1.625,1231.9,1231.8,1.20784336]
[1672801100131,1.625,1231.9,1231.8,4.21514336]
[1672801103084,1.625,1231.9,1231.8,1.20784336]
[1672801106658,1.625,1231.9,1231.8,3.0196084]
[1672801107392,1.625,1231.9,1231.8,3.02046334]
[1672801108231,1.625,1231.9,1231.8,1.81176504]
[1672801109072,1.625,1231.9,1231.8,3.02042249]
[1672801110652,1.625,1231.9,1231.8,1.81176504]
[1672801111075,1.625,1231.9,1231.8,4.81906504]
[1672801112123,1.625,1232.0,1231.8,6.44406504]
[1672801112334,1.625,1232.0,1231.8,7.65273107]
[1672801112859,1.625,1232.0,1231.8,2.83366603]
[1672801113381,1.625,1232.0,1231.8,4.64543107]
[1672801114741,1.625,1232.0,1231.8,2.83366603]
[1672801116647,4.6323,1232.0,1231.8,2.83366603]
[1672801118435,4.6323,1232.0,1231.8,1.625]
[1672801118645,4.6323,1232.0,1231.8,2.83366603]
[1672801118856,4.6323,1232.0,1231.8,1.625]
[1672801119066,4.6323,1232.0,1231.8,2.83366603]
[1672801119690,1.625,1232.0,1231.8,10.97266603]
[1672801119903,1.625,1232.1,1231.9,12.77943107]
[1672801120111,1.625,1232.1,1231.9,10.96766603]
[1672801120432,1.625,1232.1,1231.9,12.77943107]
[1672801120749,1.625,1232.1,1231.9,10.96766603]
[1672801121063,1.625,1232.1,1231.9,2.82866603]
[1672801121798,1.625,1232.1,1231.9,10.96766603]
[1672801122210,1.625,1232.0,1231.9,1.20866603]
[1672801122421,1.625,1232.0,1231.8,4.63043107]
[1672801123270,1.625,1232.0,1231.8,7.63773107]
[1672801123472,1.625,1232.0,1231.9,1.20866603]
[1672801125899,1.625,1232.0,1231.8,7.63773107]
[1672801126421,1.625,1232.0,1231.8,2.81866603]
[1672801126839,1.623,1232.1,1231.9,1.20866603]
[1672801127264,1.623,1232.1,1231.9,3.02043107]
[1672801127673,4.623,1232.1,1231.9,3.02043107]
[1672801128520,1.623,1232.1,1231.9,3.02043107]
[1672801132098,1.623,1232.1,1231.9,1.20866603]
[1672801137034,1.623,1232.1,1231.8,15.79173107]
[1672801137870,1.623,1232.1,1231.9,1.20866603]
[1672801138928,1.623,1232.1,1231.9,4.21596603]
[1672801139553,1.623,1232.1,1231.9,6.02773107]
[1672801141026,1.623,1232.1,1231.9,4.21596603]
[1672801141872,1.623,1232.1,1231.9,6.02773107]
[1672801142082,1.625,1232.1,1231.9,7.65273107]
[1672801142700,1.625,1232.1,1231.9,4.64543107]
[1672801142915,1.625,1232.1,1231.9,7.65273107]
[1672801147226,1.625,1232.1,1232.0,1.20866603]
[1672801147548,6.0885,1232.3,1232.0,11.57576504]
[1672801147754,1.623,1232.3,1232.1,4.21359758]
[1672801148491,1.623,1232.3,1232.1,3.0073]
[1672801148699,1.617,1232.4,1232.2,1.625]
[1672801148918,1.617,1232.4,1232.3,0.5]
[1672801149222,4.617,1232.4,1232.3,0.5]
[1672801149961,1.617,1232.4,1232.3,0.5]
[1672801150384,4.617,1232.4,1232.3,0.5]
[1672801150798,1.617,1232.4,1232.3,0.5]
[1672801152484,1.617,1232.4,1232.2,2.125]
[1672801153743,7.71175656,1233.0,1232.5,1.1814]
[1672801153954,15.23305656,1233.1,1232.5,12.3277]
[1672801154263,6.08675656,1233.3,1233.1,8.139]
[1672801154468,9.08675656,1233.6,1233.2,3.0073]
[1672801154683,9.08675656,1233.6,1233.2,11.1463]
[1672801154892,9.08675656,1233.6,1233.2,3.0073]
[1672801155313,9.08675656,1233.6,1233.2,11.1463]
[1672801155530,3.0,1233.6,1233.2,11.1463]
[1672801155738,3.0,1233.6,1233.1,1.625]
[1672801155952,1.625,1233.3,1233.1,0.5]
[1672801156157,0.5,1233.2,1233.1,8.639]
[1672801156479,0.5,1233.2,1233.0,5.7997]
[1672801156688,2.123,1233.2,1233.0,4.6323]
[1672801158486,0.5,1233.2,1233.0,4.6323]
[1672801159314,3.25,1233.1,1232.8,3.0073]
[1672801159518,1.625,1232.9,1232.8,3.0073]
[1672801159728,3.5073,1233.2,1232.7,1.624]
[1672801159940,3.5073,1233.2,1232.8,0.5]
[1672801160262,3.5073,1233.2,1232.6,3.0073]
[1672801160263,3.0073,1233.0,1232.6,3.0073]
[1672801160468,1.624,1232.9,1232.6,5.1313]
[1672801160684,3.0,1232.8,1232.6,13.2703]
[1672801161518,1.618,1233.0,1232.7,1.624]
[1672801161725,4.624,1233.1,1232.8,1.62]
[1672801161944,1.619,1232.9,1232.6,18.2703]
[1672801162357,1.619,1232.9,1232.6,13.2703]
[1672801162776,1.619,1232.9,1232.6,5.1313]
[1672801163408,3.0073,1232.8,1232.6,4.6313]
[1672801163617,1.624,1232.7,1232.4,18.2573]
[1672801163830,1.624,1232.7,1232.4,4.6213]
[1672801164035,1.624,1232.7,1232.4,12.7603]
[1672801164569,1.624,1232.7,1232.4,9.753]
[1672801164771,1.624,1232.7,1232.4,1.614]
[1672801164977,1.614,1232.6,1232.3,2.124]
[1672801165191,4.6213,1232.6,1232.3,2.124]
[1672801166138,3.0,1232.5,1232.3,2.124]
[1672801167293,4.6213,1232.6,1232.3,2.124]
[1672801168239,1.614,1232.6,1232.4,5.0]
[1672801168455,1.616,1232.7,1232.4,1.624]
[1672801170339,4.6313,1232.5,1232.2,16.6433]
[1672801170552,1.615,1232.3,1232.0,4.6313]
[1672801170764,1.613,1232.2,1232.1,0.5]
[1672801172241,1.613,1232.2,1232.0,3.0073]
[1672801172446,1.613,1232.2,1231.9,1.624]
[1672801172651,1.613,1232.2,1232.0,0.5]
[1672801172863,1.624,1232.1,1232.0,0.5]
[1672801173494,4.6313,1232.1,1231.7,18.636]
[1672801173707,1.624,1231.9,1231.7,13.636]
[1672801174120,1.624,1231.9,1231.8,0.5]
[1672801176752,1.624,1231.9,1231.6,4.6313]
[1672801176968,3.248,1231.9,1231.6,4.6313]
[1672801177175,3.248,1231.9,1231.7,0.5]
[1672801178009,1.624,1231.9,1231.7,0.5]
[1672801178436,1.624,1231.9,1231.8,3.0073]
[1672801179497,1.624,1231.9,1231.7,0.5]
[1672801182536,1.614,1231.8,1231.5,1.624]
[1672801182749,1.614,1231.8,1231.6,0.5]
[1672801183278,1.614,1231.8,1231.6,3.5073]
[1672801184957,1.619,1231.9,1231.6,5.1313]
[1672801188845,1.614,1231.8,1231.5,1.624]
[1672801189050,1.614,1231.8,1231.6,0.5]
[1672801190313,1.619,1231.7,1231.6,0.5]
[1672801192201,1.624,1231.8,1231.6,0.5]
[1672801195990,1.624,1231.8,1231.6,5.5]
[1672801196199,1.624,1231.8,1231.6,0.5]
[1672801198306,1.624,1231.8,1231.6,3.5073]
[1672801200918,1.619,1231.9,1231.6,5.1313]
[1672801201135,1.619,1231.9,1231.7,8.139]
[1672801201336,1.619,1232.0,1231.8,3.0073]
[1672801201973,1.624,1232.2,1231.9,1.624]
[1672801203035,3.0073,1232.6,1232.1,9.856]
[1672801203354,3.0073,1232.7,1232.4,4.6313]
[1672801203667,3.0073,1232.9,1232.2,11.46598619]
[1672801203872,3.0,1232.6,1232.4,3.0073]
[1672801204184,3.0,1232.6,1232.4,4.6313]
[1672801205022,4.619,1232.6,1232.3,2.124]
[1672801205441,4.619,1232.6,1232.3,0.5]
[1672801205442,1.624,1232.5,1232.3,0.5]
[1672801206286,4.6233,1232.7,1232.4,9.763]
[1672801206489,1.616,1232.7,1232.4,9.763]
[1672801206706,1.616,1232.7,1232.4,12.7703]
[1672801207127,3.0,1232.8,1232.6,1.624]
[1672801207128,1.614,1232.8,1232.6,1.624]
[1672801207342,1.617,1233.1,1232.7,1.624]
[1672801207752,6.0073,1233.0,1232.7,1.624]
[1672801207968,3.0,1232.9,1232.7,1.624]
[1672801208498,3.0,1233.0,1232.7,1.624]
[1672801208923,2.117,1233.1,1232.7,1.624]
[1672801209126,7.6203,1233.2,1232.9,1.624]
[1672801209332,3.0073,1233.2,1233.0,1.62]
[1672801209548,1.624,1233.6,1233.2,8.139]
[1672801209752,1.624,1233.6,1232.9,1.624]
[1672801209753,3.0,1233.5,1233.0,8.139]
[1672801209964,6.0073,1233.5,1233.0,8.139]
[1672801210173,6.0073,1233.5,1233.1,0.5]
[1672801210389,1.624,1233.3,1233.1,0.5]
[1672801210597,1.624,1233.4,1233.1,2.112]
[1672801210802,1.624,1233.4,1233.1,10.251]
[1672801211223,6.0073,1233.5,1233.3,1.624]
[1672801211852,7.6203,1233.5,1233.2,1.624]
[1672801214379,4.6203,1233.5,1233.2,1.624]
[1672801214590,1.613,1233.5,1233.2,1.624]
[1672801215222,4.6203,1233.5,1233.2,1.624]
[1672801215430,3.0,1233.4,1233.2,1.624]
[1672801215955,4.6203,1233.5,1233.2,1.624]
[1672801216594,3.0,1233.4,1233.2,1.624]
[1672801217431,4.6203,1233.5,1233.2,1.624]
[1672801217847,3.0,1233.4,1233.2,1.624]
[1672801218788,3.0,1233.4,1233.1,1.624]
[1672801219003,4.6313,1233.3,1233.0,1.624]
[1672801219214,4.6313,1233.3,1233.0,2.124]
[1672801219427,0.5,1233.2,1233.0,2.124]
[1672801219841,4.6313,1233.3,1233.0,2.124]
[1672801220052,4.6313,1233.3,1233.0,10.263]
[1672801220578,4.6313,1233.3,1233.0,1.624]
[1672801220784,1.617,1233.1,1232.8,13.636]
[1672801220994,5.1263,1233.2,1232.7,4.6313]
[1672801220995,1.613,1232.9,1232.7,4.6313]
[1672801221205,1.613,1232.9,1232.7,5.1313]
[1672801221415,4.624,1232.8,1232.6,13.636]
[1672801221630,7.6313,1232.8,1232.6,13.636]
[1672801221836,0.00242089,1232.6,1232.5,1.624]
[1672801222052,0.00242089,1232.6,1232.4,9.763]
[1672801222263,0.00242089,1232.6,1232.5,0.5]
[1672801223102,0.00242089,1232.6,1232.4,1.624]
[1672801223312,0.00242089,1232.6,1232.3,15.244]
[1672801223313,1.624,1232.5,1232.3,15.244]
[1672801223514,1.624,1232.5,1232.3,1.608]
[1672801226883,1.61942089,1232.6,1232.4,1.624]
[1672801229090,1.615,1232.5,1232.3,4.6313]
[1672801230667,0.00242089,1232.6,1232.4,1.624]
[1672801230668,1.61542089,1232.6,1232.4,1.624]
[1672801233928,4.62272089,1232.6,1232.4,1.624]
[1672801240032,0.00242089,1232.6,1232.5,1.624]
[1672801240657,0.00242089,1232.6,1232.5,1.614]
[1672801240865,0.00242089,1232.6,1232.5,14.3803]
[1672801240866,0.00042089,1232.6,1232.5,14.3803]
[1672801244125,3.0073,1233.2,1232.6,1.18297911]
[1672801244444,3.0,1233.1,1232.9,1.612]
[1672801244757,3.0,1233.1,1232.7,0.5]
[1672801246856,6.0073,1233.1,1232.7,0.5]
[1672801248645,3.0,1233.1,1232.7,0.5]
[1672801248951,3.0073,1233.0,1232.7,0.5]
[1672801249167,4.6233,1233.0,1232.8,1.624]
[1672801249903,1.616,1233.0,1232.8,1.624]
[1672801250109,1.624,1233.1,1232.8,1.624]
[1672801250432,4.617,1233.3,1233.0,1.624]
[1672801250634,7.6243,1233.3,1233.0,1.624]
[1672801251057,1.624,1233.1,1232.8,1.614]
[1672801251263,14.1463,1233.3,1232.7,18.7553]
[1672801251474,1.624,1233.0,1232.7,18.7553]
[1672801251690,1.624,1233.0,1232.7,5.1193]
[1672801251898,1.624,1233.0,1232.8,8.139]
[1672801252106,1.614,1233.2,1232.9,1.62]
[1672801252739,1.615,1233.3,1233.0,1.624]
[1672801252948,11.7354,1233.5,1233.2,1.62]
[1672801253158,7.6313,1233.5,1233.2,1.62]
[1672801253371,1.624,1233.4,1233.1,1.624]
[1672801253997,1.61710093,1233.4,1233.1,1.624]
[1672801255268,1.623,1233.3,1233.0,1.624]
[1672801255682,0.5,1233.2,1233.0,1.624]
[1672801256099,1.61710093,1233.4,1233.1,1.624]
[1672801256843,1.624,1233.3,1233.0,1.624]
[1672801257777,1.61710093,1233.4,1233.1,1.624]
[1672801259249,1.61710093,1233.4,1233.1,4.6313]
[1672801264402,1.61710093,1233.4,1233.1,1.624]
[1672801266403,1.61710093,1233.4,1233.1,4.6313]
[1672801268925,1.61710093,1233.4,1233.1,1.624]
[1672801269133,1.617,1233.3,1233.1,1.624]
[1672801269548,1.615,1233.2,1232.9,12.7703]
[1672801269764,1.624,1233.0,1232.8,9.763]
[1672801270282,3.0073,1233.3,1232.9,12.7703]
[1672801270710,3.0073,1233.3,1233.1,1.624]
[1672801274699,1.623,1233.2,1232.9,1.624]
[1672801276497,0.5,1233.1,1232.9,1.624]
[1672801277019,3.228,1233.0,1232.7,3.5073]
[1672801277232,1.624,1232.9,1232.7,3.5073]
[1672801277546,4.124,1232.9,1232.7,3.5073]
[1672801277962,1.624,1232.9,1232.7,0.5]
[1672801279325,4.6313,1232.9,1232.6,1.626]
[1672801279537,4.6313,1232.9,1232.6,2.126]
[1672801280488,4.6313,1232.9,1232.7,3.0073]
[1672801281539,4.6313,1232.9,1232.6,2.126]
[1672801286691,4.6313,1232.9,1232.7,3.0073]
[1672801286692,1.624,1232.9,1232.7,3.0073]
[1672801290893,1.624,1232.9,1232.6,2.126]
[1672801292153,1.624,1232.9,1232.6,0.002]
[1672801292154,1.619,1232.7,1232.6,0.002]
[1672801293937,4.6263,1232.7,1232.6,0.002]
[1672801294671,4.6313,1232.7,1232.2,15.56768619]
[1672801294886,1.624,1232.4,1232.2,5.31968619]
[1672801295300,1.624,1232.5,1232.3,3.0073]
[1672801295519,1.624,1232.5,1232.3,3.5073]
[1672801297829,1.624,1232.6,1232.3,5.1313]
[1672801298038,1.624,1232.6,1232.3,13.2703]
[1672801304037,1.624,1233.0,1232.5,14.3873]
[1672801304250,6.0073,1232.9,1232.7,1.624]
[1672801304554,3.0,1232.9,1232.7,1.624]
[1672801304768,3.0073,1232.9,1232.7,1.624]
[1672801304976,4.624,1233.0,1232.7,1.624]
[1672801305399,2.116,1233.1,1232.8,1.624]
[1672801305610,4.6233,1233.1,1232.8,1.624]
[1672801305817,4.6233,1233.1,1232.8,9.763]
[1672801305818,1.616,1233.1,1232.8,9.763]
[1672801306022,1.624,1233.1,1232.9,1.624]
[1672801306443,1.624,1233.1,1233.0,0.5]
[1672801307614,1.624,1233.1,1232.9,1.624]
[1672801307929,1.624,1233.0,1232.8,0.5]
[1672801308776,3.0,1232.9,1232.8,0.5]
[1672801308977,3.0,1232.9,1232.7,4.6313]
[1672801309295,4.624,1232.9,1232.7,3.5073]
[1672801310026,1.624,1232.9,1232.7,3.5073]
[1672801312762,4.6313,1232.9,1232.7,3.5073]
[1672801312975,1.624,1232.9,1232.7,3.5073]
[1672801316543,1.624,1232.9,1232.7,0.5]
[1672801316752,1.624,1232.9,1232.7,3.5073]
[1672801318113,1.624,1232.8,1232.6,13.636]
[1672801318328,1.624,1232.8,1232.7,0.5]
[1672801321814,1.624,1232.8,1232.5,4.6313]
[1672801322235,1.624,1232.8,1232.6,0.5]
[1672801325406,2.124,1232.7,1232.3,20.64299758]
[1672801325608,1.613,1232.8,1232.5,4.6313]
[1672801326350,1.624,1232.7,1232.5,3.0073]
[1672801328123,1.624,1232.7,1232.4,2.124]
[1672801328336,1.619,1232.8,1232.5,9.753]
[1672801328547,1.617,1232.9,1232.6,1.624]
[1672801329391,4.6243,1232.9,1232.6,1.624]
[1672801330224,4.6243,1232.9,1232.6,4.6313]
[1672801332538,4.6243,1232.9,1232.6,1.624]
[1672801333580,4.6243,1232.9,1232.6,4.6313]
[1672801336734,0.5,1232.8,1232.6,4.6313]